[Event "Titled Tuesday Blitz November 07 Late 2023"]
[White "Roebers, Eline"]
[Black "Matlakov, Maxim"]
[WhiteFideId "1058401"]
[BlackFideId "4168003"]
[WhiteElo "2636"]
[BlackElo "2965"]
[Result "0-1"]
[Round "4"]
[TimeControl "180+1"]
[Date "2023.11.07"]
[WhiteClock "0:00:16"]
[BlackClock "0:00:52"]
[Board "16"]

1. e4 {[%clk 0:03:00]}  c5 {[%clk 0:02:59]} 2. Nf3 {[%clk 0:03:00]}  e6 {[%clk 0:03:00]} 3. d4 {[%clk 0:03:00]}  cxd4 {[%clk 0:03:00]} 4. Nxd4 {[%clk 0:03:00]}  Nc6 {[%clk 0:03:01]} 5. Nc3 {[%clk 0:03:00]}  Qc7 {[%clk 0:03:01]} 6. f4 {[%clk 0:02:58]}  a6 {[%clk 0:03:00]} 7. Nxc6 {[%clk 0:02:58]}  bxc6 {[%clk 0:03:00]} 8. Bd3 {[%clk 0:02:57]}  d5 {[%clk 0:03:00]} 9. Qe2 {[%clk 0:02:58]}  Be7 {[%clk 0:02:58]} 10. O-O {[%clk 0:02:52]}  Nf6 {[%clk 0:02:58]} 11. Kh1 {[%clk 0:02:49]}  Bb7 {[%clk 0:02:56]} 12. b3 {[%clk 0:02:48]}  O-O {[%clk 0:02:55]} 13. Bb2 {[%clk 0:02:48]}  c5 {[%clk 0:02:51]} 14. Rf3 {[%clk 0:02:38]}  g6 {[%clk 0:02:47]} 15. Rh3 {[%clk 0:02:22]}  d4 {[%clk 0:02:24]} 16. Nd1 {[%clk 0:02:00]}  Qxf4 {[%clk 0:02:20]} 17. Nf2 {[%clk 0:01:55]}  h5 {[%clk 0:01:58]} 18. Rf1 {[%clk 0:01:45]}  Ng4 {[%clk 0:01:53]} 19. Nd1 {[%clk 0:01:37]}  Qc7 {[%clk 0:01:41]} 20. Bc1 {[%clk 0:01:34]}  Bd6 {[%clk 0:01:31]} 21. Bg5 {[%clk 0:01:25]}  f6 {[%clk 0:01:26]} 22. Bd2 {[%clk 0:01:19]}  Nxh2 {[%clk 0:01:24]} 23. e5 {[%clk 0:01:13]}  Bxe5 {[%clk 0:01:17]} 24. Bxg6 {[%clk 0:01:13]}  Nxf1 {[%clk 0:01:12]} 25. Qxf1 {[%clk 0:01:10]}  Kg7 {[%clk 0:01:10]} 26. Bxh5 {[%clk 0:00:59]}  Rh8 {[%clk 0:01:09]} 27. Qe2 {[%clk 0:00:59]}  Rag8 {[%clk 0:01:02]} 28. Nf2 {[%clk 0:00:54]}  Kf8 {[%clk 0:01:01]} 29. Ng4 {[%clk 0:00:53]}  Qc6 {[%clk 0:00:55]} 30. a4 {[%clk 0:00:16]}  Qe4 {[%clk 0:00:52]} 0-1


[Site "https://www.chess.com"]

[Event "Titled Tuesday Blitz November 07 Late 2023"]
[White "Aravindh, Chithambaram VR."]
[Black "Lima, Kleyton Alcantara"]
[WhiteFideId "5072786"]
[BlackFideId "22718397"]
[WhiteElo "2945"]
[BlackElo "2544"]
[Result "1-0"]
[Round "4"]
[TimeControl "180+1"]
[Date "2023.11.07"]
[WhiteClock "0:00:06"]
[BlackClock "0:00:02"]
[Board "18"]

1. b3 {[%clk 0:03:00]}  Nf6 {[%clk 0:02:59]} 2. Bb2 {[%clk 0:03:01]}  g6 {[%clk 0:02:59]} 3. Nf3 {[%clk 0:03:01]}  Bg7 {[%clk 0:02:59]} 4. d4 {[%clk 0:03:00]}  c5 {[%clk 0:02:58]} 5. e3 {[%clk 0:03:00]}  O-O {[%clk 0:02:57]} 6. Be2 {[%clk 0:02:59]}  cxd4 {[%clk 0:02:57]} 7. Nxd4 {[%clk 0:02:59]}  Nc6 {[%clk 0:02:57]} 8. c4 {[%clk 0:02:57]}  d5 {[%clk 0:02:55]} 9. cxd5 {[%clk 0:02:55]}  Qxd5 {[%clk 0:02:55]} 10. O-O {[%clk 0:02:55]}  Nxd4 {[%clk 0:02:54]} 11. Qxd4 {[%clk 0:02:50]}  Qxd4 {[%clk 0:02:54]} 12. Bxd4 {[%clk 0:02:51]}  Be6 {[%clk 0:02:51]} 13. Bf3 {[%clk 0:02:51]}  Bd5 {[%clk 0:02:33]} 14. Nd2 {[%clk 0:02:50]}  Bxf3 {[%clk 0:02:31]} 15. Nxf3 {[%clk 0:02:51]}  Ne4 {[%clk 0:02:27]} 16. Rfc1 {[%clk 0:02:39]}  Rac8 {[%clk 0:02:16]} 17. Kf1 {[%clk 0:02:23]}  Rfd8 {[%clk 0:01:55]} 18. Ke2 {[%clk 0:02:13]}  a6 {[%clk 0:01:48]} 19. h4 {[%clk 0:01:07]}  f5 {[%clk 0:01:30]} 20. Ke1 {[%clk 0:00:57]}  Kf7 {[%clk 0:01:21]} 21. Bxg7 {[%clk 0:00:45]}  Kxg7 {[%clk 0:01:20]} 22. Nd4 {[%clk 0:00:44]}  Kf6 {[%clk 0:01:14]} 23. f3 {[%clk 0:00:44]}  Nc5 {[%clk 0:01:09]} 24. Kf1 {[%clk 0:00:27]}  f4 {[%clk 0:01:03]} 25. Rc4 {[%clk 0:00:08]}  b5 {[%clk 0:00:55]} 26. Rc3 {[%clk 0:00:08]}  fxe3 {[%clk 0:00:53]} 27. Nc2 {[%clk 0:00:08]}  Nd3 {[%clk 0:00:44]} 28. Rxc8 {[%clk 0:00:07]}  Rxc8 {[%clk 0:00:45]} 29. Nxe3 {[%clk 0:00:08]}  Nb4 {[%clk 0:00:37]} 30. Ke2 {[%clk 0:00:04]}  Nc2 {[%clk 0:00:28]} 31. Ng4+ {[%clk 0:00:04]}  Ke6 {[%clk 0:00:26]} 32. Rd1 {[%clk 0:00:05]}  h5 {[%clk 0:00:22]} 33. Nf2 {[%clk 0:00:04]}  Nb4 {[%clk 0:00:19]} 34. Rd2 {[%clk 0:00:05]}  Rc2 {[%clk 0:00:16]} 35. Rxc2 {[%clk 0:00:04]}  Nxc2 {[%clk 0:00:16]} 36. Ne4 {[%clk 0:00:04]}  a5 {[%clk 0:00:11]} 37. Kd2 {[%clk 0:00:04]}  Nb4 {[%clk 0:00:11]} 38. Nc3 {[%clk 0:00:05]}  Ke5 {[%clk 0:00:10]} 39. a3 {[%clk 0:00:04]}  Nd5 {[%clk 0:00:08]} 40. Nxb5 {[%clk 0:00:04]}  Nf4 {[%clk 0:00:09]} 41. g3 {[%clk 0:00:04]}  Nd5 {[%clk 0:00:09]} 42. Nc3 {[%clk 0:00:03]}  Nb6 {[%clk 0:00:07]} 43. Kd3 {[%clk 0:00:03]}  e6 {[%clk 0:00:06]} 44. b4 {[%clk 0:00:04]}  axb4 {[%clk 0:00:06]} 45. axb4 {[%clk 0:00:05]}  Kd6 {[%clk 0:00:06]} 46. Ne4+ {[%clk 0:00:05]}  Ke5 {[%clk 0:00:07]} 47. Nc3 {[%clk 0:00:05]}  Kd6 {[%clk 0:00:07]} 48. Kd4 {[%clk 0:00:05]}  Nd7 {[%clk 0:00:05]} 49. Ne4+ {[%clk 0:00:05]}  Kc6 {[%clk 0:00:05]} 50. Nc5 {[%clk 0:00:06]}  Nf6 {[%clk 0:00:03]} 51. Nxe6 {[%clk 0:00:06]}  Nd5 {[%clk 0:00:02]} 52. b5+ {[%clk 0:00:06]}  Kd6 {[%clk 0:00:03]} 53. Nf4 {[%clk 0:00:06]}  Nb4 {[%clk 0:00:02]} 54. Nxg6 {[%clk 0:00:06]} 1-0


[Site "https://www.chess.com"]

[Event "Titled Tuesday Blitz November 07 Late 2023"]
[White "Elsa167"]
[Black "Cremisi, Daniel"]
[BlackFideId "2089882"]
[WhiteElo "2975"]
[BlackElo "2627"]
[Result "1-0"]
[Round "4"]
[TimeControl "180+1"]
[Date "2023.11.07"]
[WhiteClock "0:00:16"]
[BlackClock "0:00:00"]
[Board "19"]

1. c3 {[%clk 0:02:59]}  Nf6 {[%clk 0:03:00]} 2. d4 {[%clk 0:02:59]}  d5 {[%clk 0:03:00]} 3. Bf4 {[%clk 0:02:59]}  e6 {[%clk 0:02:59]} 4. e3 {[%clk 0:03:00]}  c5 {[%clk 0:03:00]} 5. Nd2 {[%clk 0:02:59]}  Bd6 {[%clk 0:03:00]} 6. Bxd6 {[%clk 0:02:59]}  Qxd6 {[%clk 0:03:00]} 7. f4 {[%clk 0:02:57]}  cxd4 {[%clk 0:03:00]} 8. cxd4 {[%clk 0:02:56]}  O-O {[%clk 0:02:59]} 9. Ngf3 {[%clk 0:02:56]}  Ne4 {[%clk 0:02:56]} 10. Bd3 {[%clk 0:02:52]}  f5 {[%clk 0:02:56]} 11. O-O {[%clk 0:02:40]}  Nc6 {[%clk 0:02:56]} 12. Ne5 {[%clk 0:02:37]}  Nxe5 {[%clk 0:02:54]} 13. fxe5 {[%clk 0:02:38]}  Qe7 {[%clk 0:02:54]} 14. Bxe4 {[%clk 0:02:19]}  dxe4 {[%clk 0:02:32]} 15. Nc4 {[%clk 0:02:18]}  Bd7 {[%clk 0:02:32]} 16. Nd6 {[%clk 0:02:18]}  Bc6 {[%clk 0:02:32]} 17. Rc1 {[%clk 0:02:16]}  Rad8 {[%clk 0:02:26]} 18. Qd2 {[%clk 0:02:06]}  Kh8 {[%clk 0:02:15]} 19. b4 {[%clk 0:02:04]}  a6 {[%clk 0:02:15]} 20. Rc5 {[%clk 0:01:49]}  g5 {[%clk 0:02:09]} 21. g3 {[%clk 0:01:41]}  f4 {[%clk 0:01:48]} 22. exf4 {[%clk 0:01:24]}  gxf4 {[%clk 0:01:46]} 23. Rxf4 {[%clk 0:01:24]}  Rxf4 {[%clk 0:01:46]} 24. Qxf4 {[%clk 0:01:25]}  Rf8 {[%clk 0:01:46]} 25. Qh6 {[%clk 0:01:25]}  e3 {[%clk 0:01:39]} 26. Rc2 {[%clk 0:01:03]}  Rf3 {[%clk 0:01:30]} 27. Re2 {[%clk 0:01:01]}  Qg7 {[%clk 0:01:17]} 28. Qxg7+ {[%clk 0:00:50]}  Kxg7 {[%clk 0:01:18]} 29. Nc4 {[%clk 0:00:50]}  Bd5 {[%clk 0:01:10]} 30. Rxe3 {[%clk 0:00:49]}  Rxe3 {[%clk 0:01:04]} 31. Nxe3 {[%clk 0:00:50]}  Bxa2 {[%clk 0:01:05]} 32. Kf2 {[%clk 0:00:49]}  b6 {[%clk 0:01:03]} 33. Ke2 {[%clk 0:00:48]}  Kg6 {[%clk 0:01:03]} 34. h4 {[%clk 0:00:46]}  h5 {[%clk 0:00:58]} 35. Kd3 {[%clk 0:00:44]}  Bd5 {[%clk 0:00:51]} 36. Nxd5 {[%clk 0:00:16]}  exd5 {[%clk 0:00:52]} 37. Ke3 {[%clk 0:00:16]}  Kf5 {[%clk 0:00:07]} 38. Kf3 {[%clk 0:00:17]}  Ke6 {[%clk 0:00:05]} 39. Kf4 {[%clk 0:00:16]}  Ke7 {[%clk 0:00:02]} 40. g4 {[%clk 0:00:15]}  hxg4 {[%clk 0:00:00]} 41. h5 {[%clk 0:00:16]} 1-0


[Site "https://www.chess.com"]

[Event "Titled Tuesday Blitz November 07 Late 2023"]
[White "Salinas Herrera, Pablo"]
[Black "Hilary46"]
[WhiteFideId "3407128"]
[WhiteElo "2900"]
[BlackElo "2708"]
[Result "1-0"]
[Round "4"]
[TimeControl "180+1"]
[Date "2023.11.07"]
[WhiteClock "0:00:34"]
[BlackClock "0:00:02"]
[Board "20"]

1. d4 {[%clk 0:03:00]}  d5 {[%clk 0:02:59]} 2. Nf3 {[%clk 0:03:00]}  Nf6 {[%clk 0:02:59]} 3. Bf4 {[%clk 0:03:01]}  c5 {[%clk 0:02:58]} 4. e3 {[%clk 0:03:01]}  Nc6 {[%clk 0:02:59]} 5. Nbd2 {[%clk 0:03:01]}  cxd4 {[%clk 0:02:52]} 6. exd4 {[%clk 0:03:02]}  Bg4 {[%clk 0:02:50]} 7. c3 {[%clk 0:03:02]}  Qb6 {[%clk 0:02:30]} 8. Qb3 {[%clk 0:03:02]}  Qxb3 {[%clk 0:02:29]} 9. axb3 {[%clk 0:03:03]}  Bd7 {[%clk 0:02:20]} 10. b4 {[%clk 0:03:02]}  e6 {[%clk 0:02:14]} 11. Nb3 {[%clk 0:02:59]}  Ne4 {[%clk 0:02:04]} 12. b5 {[%clk 0:02:49]}  Nd8 {[%clk 0:02:03]} 13. Ne5 {[%clk 0:02:50]}  f6 {[%clk 0:01:54]} 14. Nxd7 {[%clk 0:02:50]}  Kxd7 {[%clk 0:01:55]} 15. f3 {[%clk 0:02:50]}  Nd6 {[%clk 0:01:52]} 16. Nc5+ {[%clk 0:02:49]}  Ke7 {[%clk 0:01:52]} 17. h4 {[%clk 0:02:41]}  Kf7 {[%clk 0:01:46]} 18. Bd3 {[%clk 0:02:39]}  Nc8 {[%clk 0:01:29]} 19. Bc7 {[%clk 0:02:27]}  Bxc5 {[%clk 0:01:20]} 20. dxc5 {[%clk 0:02:25]}  e5 {[%clk 0:01:20]} 21. Bxd8 {[%clk 0:02:00]}  Rxd8 {[%clk 0:01:21]} 22. h5 {[%clk 0:01:58]}  h6 {[%clk 0:01:12]} 23. b4 {[%clk 0:01:57]}  b6 {[%clk 0:00:45]} 24. Ra6 {[%clk 0:01:52]}  Rb8 {[%clk 0:00:44]} 25. Ke2 {[%clk 0:01:49]}  Ke6 {[%clk 0:00:37]} 26. g4 {[%clk 0:01:46]}  Kf7 {[%clk 0:00:36]} 27. Rha1 {[%clk 0:01:45]}  Kf8 {[%clk 0:00:29]} 28. c6 {[%clk 0:01:29]}  Re8 {[%clk 0:00:29]} 29. c4 {[%clk 0:01:07]}  dxc4 {[%clk 0:00:28]} 30. Bxc4 {[%clk 0:01:07]}  Re7 {[%clk 0:00:27]} 31. Rd1 {[%clk 0:01:05]}  Rc7 {[%clk 0:00:23]} 32. Be6 {[%clk 0:00:58]}  Ke7 {[%clk 0:00:20]} 33. Bxc8 {[%clk 0:00:46]}  Rbxc8 {[%clk 0:00:21]} 34. Rda1 {[%clk 0:00:46]}  Ke6 {[%clk 0:00:11]} 35. Rxa7 {[%clk 0:00:42]}  f5 {[%clk 0:00:09]} 36. Rxc7 {[%clk 0:00:39]}  Rxc7 {[%clk 0:00:09]} 37. Ra6 {[%clk 0:00:39]}  fxg4 {[%clk 0:00:08]} 38. fxg4 {[%clk 0:00:39]}  Kd5 {[%clk 0:00:07]} 39. Rxb6 {[%clk 0:00:40]}  Rf7 {[%clk 0:00:03]} 40. Rb7 {[%clk 0:00:39]}  Rf4 {[%clk 0:00:04]} 41. c7 {[%clk 0:00:36]}  Rc4 {[%clk 0:00:05]} 42. b6 {[%clk 0:00:35]}  Ke4 {[%clk 0:00:02]} 43. Rb8 {[%clk 0:00:34]}  Rc2+ {[%clk 0:00:02]} 44. Kd1 {[%clk 0:00:34]}  Kd3 {[%clk 0:00:02]} 45. c8=Q {[%clk 0:00:34]} 1-0


[Site "https://www.chess.com"]

[Event "Titled Tuesday Blitz November 07 Late 2023"]
[White "Leitao, Rafael"]
[Black "Koellner, Ruben Gideon"]
[WhiteFideId "2101246"]
[BlackFideId "12993093"]
[WhiteElo "2814"]
[BlackElo "2700"]
[Result "1/2-1/2"]
[Round "4"]
[TimeControl "180+1"]
[Date "2023.11.07"]
[WhiteClock "0:00:18"]
[BlackClock "0:00:23"]
[Board "21"]

1. c4 {[%clk 0:03:00]}  d6 {[%clk 0:03:00]} 2. g3 {[%clk 0:03:00]}  Nf6 {[%clk 0:03:00]} 3. Bg2 {[%clk 0:03:00]}  e5 {[%clk 0:03:00]} 4. Nc3 {[%clk 0:02:58]}  Be7 {[%clk 0:03:01]} 5. Nf3 {[%clk 0:02:57]}  O-O {[%clk 0:03:00]} 6. d4 {[%clk 0:02:57]}  exd4 {[%clk 0:03:00]} 7. Nxd4 {[%clk 0:02:57]}  Re8 {[%clk 0:03:01]} 8. O-O {[%clk 0:02:57]}  Bf8 {[%clk 0:03:02]} 9. e4 {[%clk 0:02:57]}  Nc6 {[%clk 0:03:01]} 10. Re1 {[%clk 0:02:53]}  Bd7 {[%clk 0:03:00]} 11. Nc2 {[%clk 0:02:47]}  g6 {[%clk 0:02:57]} 12. b3 {[%clk 0:02:40]}  Bg7 {[%clk 0:02:57]} 13. Bb2 {[%clk 0:02:40]}  h5 {[%clk 0:02:53]} 14. Qd2 {[%clk 0:02:28]}  h4 {[%clk 0:02:51]} 15. Ne3 {[%clk 0:02:27]}  h3 {[%clk 0:02:49]} 16. Bh1 {[%clk 0:02:26]}  Ne7 {[%clk 0:02:36]} 17. Rad1 {[%clk 0:02:20]}  a5 {[%clk 0:02:32]} 18. e5 {[%clk 0:01:47]}  dxe5 {[%clk 0:02:25]} 19. Bxb7 {[%clk 0:01:47]}  Rb8 {[%clk 0:02:24]} 20. Bh1 {[%clk 0:01:46]}  c6 {[%clk 0:02:15]} 21. Ne4 {[%clk 0:01:40]}  Nxe4 {[%clk 0:02:12]} 22. Qxd7 {[%clk 0:01:38]}  Qxd7 {[%clk 0:02:10]} 23. Rxd7 {[%clk 0:01:39]}  Nc5 {[%clk 0:02:10]} 24. Rdd1 {[%clk 0:00:59]}  e4 {[%clk 0:02:05]} 25. Ba3 {[%clk 0:00:57]}  Nd3 {[%clk 0:02:00]} 26. Re2 {[%clk 0:00:55]}  f5 {[%clk 0:01:59]} 27. f3 {[%clk 0:00:55]}  Nb4 {[%clk 0:00:49]} 28. fxe4 {[%clk 0:00:53]}  fxe4 {[%clk 0:00:50]} 29. Bxe4 {[%clk 0:00:52]}  Nf5 {[%clk 0:00:49]} 30. Nxf5 {[%clk 0:00:47]}  gxf5 {[%clk 0:00:49]} 31. Bf3 {[%clk 0:00:47]}  Red8 {[%clk 0:00:46]} 32. Red2 {[%clk 0:00:44]}  Rxd2 {[%clk 0:00:43]} 33. Rxd2 {[%clk 0:00:45]}  c5 {[%clk 0:00:42]} 34. Bxb4 {[%clk 0:00:43]}  axb4 {[%clk 0:00:40]} 35. Kf1 {[%clk 0:00:41]}  Bd4 {[%clk 0:00:39]} 36. Re2 {[%clk 0:00:41]}  Kf7 {[%clk 0:00:37]} 37. Bd5+ {[%clk 0:00:40]}  Kf6 {[%clk 0:00:37]} 38. Re6+ {[%clk 0:00:40]}  Kg5 {[%clk 0:00:38]} 39. Ke2 {[%clk 0:00:40]}  Rf8 {[%clk 0:00:35]} 40. Kf3 {[%clk 0:00:40]}  Rf6 {[%clk 0:00:29]} 41. Re8 {[%clk 0:00:38]}  Ra6 {[%clk 0:00:28]} 42. Re2 {[%clk 0:00:36]}  Ra7 {[%clk 0:00:26]} 43. Bc6 {[%clk 0:00:29]}  Ra6 {[%clk 0:00:25]} 44. Ba4 {[%clk 0:00:26]}  Kf6 {[%clk 0:00:24]} 45. Re8 {[%clk 0:00:22]}  Re6 {[%clk 0:00:24]} 46. Rxe6+ {[%clk 0:00:21]}  Kxe6 {[%clk 0:00:25]} 47. g4 {[%clk 0:00:20]}  Be5 {[%clk 0:00:21]} 48. gxf5+ {[%clk 0:00:15]}  Kxf5 {[%clk 0:00:20]} 49. Bd7+ {[%clk 0:00:15]}  Kf6 {[%clk 0:00:20]} 50. Bxh3 {[%clk 0:00:15]}  Bxh2 {[%clk 0:00:20]} 51. Ke4 {[%clk 0:00:15]}  Ke7 {[%clk 0:00:16]} 52. Kd5 {[%clk 0:00:15]}  Bg1 {[%clk 0:00:17]} 53. Bg4 {[%clk 0:00:14]}  Kd8 {[%clk 0:00:17]} 54. Bh3 {[%clk 0:00:13]}  Kc7 {[%clk 0:00:17]} 55. Bg4 {[%clk 0:00:14]}  Kb6 {[%clk 0:00:18]} 56. Bh3 {[%clk 0:00:15]}  Bd4 {[%clk 0:00:18]} 57. Bg4 {[%clk 0:00:15]}  Bc3 {[%clk 0:00:19]} 58. Bh3 {[%clk 0:00:16]}  Bb2 {[%clk 0:00:19]} 59. Bg4 {[%clk 0:00:17]}  Ba3 {[%clk 0:00:20]} 60. Bh3 {[%clk 0:00:17]}  Bb2 {[%clk 0:00:21]} 61. Bg4 {[%clk 0:00:17]}  Ba3 {[%clk 0:00:22]} 62. Bh3 {[%clk 0:00:18]}  Bb2 {[%clk 0:00:23]} 1/2-1/2


[Site "https://www.chess.com"]

[Event "Titled Tuesday Blitz November 07 Late 2023"]
[White "Silva, Caio Henrique Angelico"]
[Black "Holt, Conrad"]
[WhiteFideId "22777210"]
[BlackFideId "2034387"]
[WhiteElo "2537"]
[BlackElo "2808"]
[Result "0-1"]
[Round "4"]
[TimeControl "180+1"]
[Date "2023.11.07"]
[WhiteClock "0:00:14"]
[BlackClock "0:00:14"]
[Board "22"]

1. d4 {[%clk 0:02:57]}  d5 {[%clk 0:02:59]} 2. Nf3 {[%clk 0:02:53]}  Nf6 {[%clk 0:02:58]} 3. g3 {[%clk 0:02:53]}  Bf5 {[%clk 0:02:57]} 4. c4 {[%clk 0:02:52]}  c6 {[%clk 0:02:57]} 5. Nc3 {[%clk 0:02:53]}  dxc4 {[%clk 0:02:53]} 6. Nh4 {[%clk 0:02:49]}  Bc8 {[%clk 0:02:44]} 7. a4 {[%clk 0:02:45]}  g6 {[%clk 0:02:38]} 8. e4 {[%clk 0:02:43]}  e5 {[%clk 0:02:36]} 9. dxe5 {[%clk 0:02:37]}  Qxd1+ {[%clk 0:02:35]} 10. Nxd1 {[%clk 0:02:37]}  Nxe4 {[%clk 0:02:35]} 11. Bxc4 {[%clk 0:02:34]}  Bb4+ {[%clk 0:02:35]} 12. Ke2 {[%clk 0:02:33]}  Nd7 {[%clk 0:02:31]} 13. f4 {[%clk 0:02:30]}  Nb6 {[%clk 0:02:21]} 14. Bb3 {[%clk 0:02:28]}  Bg4+ {[%clk 0:02:20]} 15. Nf3 {[%clk 0:02:27]}  Rd8 {[%clk 0:02:10]} 16. Ne3 {[%clk 0:02:26]}  h5 {[%clk 0:01:55]} 17. Nxg4 {[%clk 0:02:14]}  hxg4 {[%clk 0:01:55]} 18. Nh4 {[%clk 0:02:03]}  Nc5 {[%clk 0:01:05]} 19. Bc2 {[%clk 0:01:58]}  Nc4 {[%clk 0:01:03]} 20. b3 {[%clk 0:01:46]}  Nd2 {[%clk 0:01:00]} 21. Bb2 {[%clk 0:01:37]}  Ndxb3 {[%clk 0:00:50]} 22. Rad1 {[%clk 0:01:37]}  Rxd1 {[%clk 0:00:44]} 23. Rxd1 {[%clk 0:01:38]}  Nxa4 {[%clk 0:00:40]} 24. Bxb3 {[%clk 0:01:27]}  Nxb2 {[%clk 0:00:40]} 25. Rb1 {[%clk 0:01:23]}  Bc3 {[%clk 0:00:37]} 26. Rc1 {[%clk 0:01:23]}  Bd4 {[%clk 0:00:36]} 27. Rd1 {[%clk 0:01:19]}  c5 {[%clk 0:00:33]} 28. Rd2 {[%clk 0:01:03]}  b5 {[%clk 0:00:27]} 29. e6 {[%clk 0:01:02]}  fxe6 {[%clk 0:00:26]} 30. Bxe6 {[%clk 0:01:03]}  a5 {[%clk 0:00:21]} 31. Kf1 {[%clk 0:00:59]}  Rh6 {[%clk 0:00:20]} 32. Bd5 {[%clk 0:00:57]}  b4 {[%clk 0:00:18]} 33. Kg2 {[%clk 0:00:51]}  a4 {[%clk 0:00:18]} 34. f5 {[%clk 0:00:51]}  gxf5 {[%clk 0:00:17]} 35. Nxf5 {[%clk 0:00:52]}  Rb6 {[%clk 0:00:17]} 36. Nxd4 {[%clk 0:00:51]}  cxd4 {[%clk 0:00:17]} 37. Rxb2 {[%clk 0:00:51]}  b3 {[%clk 0:00:16]} 38. Kf2 {[%clk 0:00:46]}  Ke7 {[%clk 0:00:14]} 39. Ke2 {[%clk 0:00:45]}  Kd6 {[%clk 0:00:14]} 40. Bc4 {[%clk 0:00:45]}  Kc5 {[%clk 0:00:14]} 41. Kd3 {[%clk 0:00:44]}  Rf6 {[%clk 0:00:13]} 42. Bg8 {[%clk 0:00:27]}  Rf8 {[%clk 0:00:12]} 43. Be6 {[%clk 0:00:25]}  Re8 {[%clk 0:00:12]} 44. Bxg4 {[%clk 0:00:23]}  Re3+ {[%clk 0:00:13]} 45. Kd2 {[%clk 0:00:23]}  a3 {[%clk 0:00:13]} 46. Rb1 {[%clk 0:00:23]}  a2 {[%clk 0:00:13]} 47. Rc1+ {[%clk 0:00:21]}  Kb4 {[%clk 0:00:14]} 48. Bf5 {[%clk 0:00:17]}  b2 {[%clk 0:00:14]} 49. Rc8 {[%clk 0:00:16]}  a1=Q {[%clk 0:00:14]} 50. Rb8+ {[%clk 0:00:17]}  Kc5 {[%clk 0:00:14]} 51. Rc8+ {[%clk 0:00:14]}  Kd6 {[%clk 0:00:14]} 0-1


[Site "https://www.chess.com"]

[Event "Titled Tuesday Blitz November 07 Late 2023"]
[White "Kazakov, Mikhail"]
[Black "Maksimovic, Bojan"]
[WhiteFideId "14102749"]
[BlackFideId "14408120"]
[WhiteElo "2425"]
[BlackElo "2742"]
[Result "1-0"]
[Round "4"]
[TimeControl "180+1"]
[Date "2023.11.07"]
[WhiteClock "0:00:07"]
[BlackClock "0:00:00"]
[Board "23"]

1. d4 {[%clk 0:02:59]}  g6 {[%clk 0:02:59]} 2. c4 {[%clk 0:02:58]}  Bg7 {[%clk 0:02:59]} 3. Nf3 {[%clk 0:02:58]}  d6 {[%clk 0:03:00]} 4. Nc3 {[%clk 0:02:57]}  e5 {[%clk 0:03:00]} 5. e4 {[%clk 0:02:55]}  Nc6 {[%clk 0:03:00]} 6. d5 {[%clk 0:02:55]}  Nd4 {[%clk 0:03:00]} 7. Be2 {[%clk 0:02:53]}  c5 {[%clk 0:02:58]} 8. dxc6 {[%clk 0:02:26]}  bxc6 {[%clk 0:02:58]} 9. O-O {[%clk 0:02:24]}  Ne7 {[%clk 0:02:55]} 10. Be3 {[%clk 0:02:23]}  c5 {[%clk 0:02:56]} 11. Qd2 {[%clk 0:02:15]}  O-O {[%clk 0:02:56]} 12. Bd1 {[%clk 0:02:11]}  Rb8 {[%clk 0:02:55]} 13. b3 {[%clk 0:02:10]}  Kh8 {[%clk 0:02:52]} 14. Bh6 {[%clk 0:02:07]}  Bxh6 {[%clk 0:02:46]} 15. Qxh6 {[%clk 0:02:08]}  Nxf3+ {[%clk 0:02:47]} 16. Bxf3 {[%clk 0:02:07]}  Nc6 {[%clk 0:02:47]} 17. Rae1 {[%clk 0:01:53]}  Nd4 {[%clk 0:02:47]} 18. Bd1 {[%clk 0:01:53]}  Be6 {[%clk 0:02:46]} 19. f4 {[%clk 0:01:51]}  f6 {[%clk 0:02:24]} 20. Ne2 {[%clk 0:01:41]}  Qe7 {[%clk 0:02:13]} 21. Nxd4 {[%clk 0:01:33]}  cxd4 {[%clk 0:02:13]} 22. f5 {[%clk 0:01:30]}  gxf5 {[%clk 0:02:12]} 23. exf5 {[%clk 0:01:30]}  Bd7 {[%clk 0:02:07]} 24. Bf3 {[%clk 0:01:27]}  Qg7 {[%clk 0:02:05]} 25. Qh4 {[%clk 0:01:18]}  Bxf5 {[%clk 0:02:03]} 26. Bd5 {[%clk 0:01:09]}  Qg5 {[%clk 0:02:02]} 27. Qxg5 {[%clk 0:00:56]}  fxg5 {[%clk 0:02:03]} 28. c5 {[%clk 0:00:56]}  dxc5 {[%clk 0:02:03]} 29. Rxe5 {[%clk 0:00:55]}  Bd3 {[%clk 0:02:03]} 30. Rd1 {[%clk 0:00:51]}  Rf5 {[%clk 0:01:58]} 31. Rxf5 {[%clk 0:00:37]}  Bxf5 {[%clk 0:01:59]} 32. Rf1 {[%clk 0:00:34]}  Bg6 {[%clk 0:01:56]} 33. Rc1 {[%clk 0:00:31]}  Rb5 {[%clk 0:01:34]} 34. a4 {[%clk 0:00:26]}  Ra5 {[%clk 0:01:34]} 35. Bc4 {[%clk 0:00:21]}  Kg7 {[%clk 0:01:22]} 36. Re1 {[%clk 0:00:20]}  Bf5 {[%clk 0:00:50]} 37. Re7+ {[%clk 0:00:20]}  Kf6 {[%clk 0:00:49]} 38. Rc7 {[%clk 0:00:19]}  Ke5 {[%clk 0:00:45]} 39. Kf2 {[%clk 0:00:19]}  h5 {[%clk 0:00:34]} 40. Rg7 {[%clk 0:00:18]}  Kf6 {[%clk 0:00:32]} 41. Rg8 {[%clk 0:00:18]}  g4 {[%clk 0:00:25]} 42. g3 {[%clk 0:00:17]}  Be6 {[%clk 0:00:25]} 43. Bxe6 {[%clk 0:00:10]}  Kxe6 {[%clk 0:00:26]} 44. Rg5 {[%clk 0:00:11]}  Kd7 {[%clk 0:00:09]} 45. Rxh5 {[%clk 0:00:11]}  Ra6 {[%clk 0:00:10]} 46. Rxc5 {[%clk 0:00:10]}  Rf6+ {[%clk 0:00:03]} 47. Ke2 {[%clk 0:00:10]}  Rh6 {[%clk 0:00:03]} 48. Rd5+ {[%clk 0:00:09]}  Kc6 {[%clk 0:00:03]} 49. Rxd4 {[%clk 0:00:10]}  Rxh2+ {[%clk 0:00:04]} 50. Kd3 {[%clk 0:00:10]}  Kc5 {[%clk 0:00:02]} 51. Rxg4 {[%clk 0:00:10]}  a5 {[%clk 0:00:02]} 52. Rg5+ {[%clk 0:00:09]}  Kb6 {[%clk 0:00:03]} 53. Rb5+ {[%clk 0:00:08]}  Ka6 {[%clk 0:00:03]} 54. Rg5 {[%clk 0:00:09]}  Kb6 {[%clk 0:00:03]} 55. Kc3 {[%clk 0:00:08]}  Rh1 {[%clk 0:00:02]} 56. Rg6+ {[%clk 0:00:08]}  Kc5 {[%clk 0:00:02]} 57. Rg5+ {[%clk 0:00:09]}  Kb6 {[%clk 0:00:02]} 58. Rb5+ {[%clk 0:00:09]}  Ka6 {[%clk 0:00:02]} 59. g4 {[%clk 0:00:09]}  Rh3+ {[%clk 0:00:02]} 60. Kb2 {[%clk 0:00:08]}  Rg3 {[%clk 0:00:02]} 61. g5 {[%clk 0:00:07]}  Rg4 {[%clk 0:00:02]} 62. Kc3 {[%clk 0:00:07]}  Rg3+ {[%clk 0:00:02]} 63. Kd4 {[%clk 0:00:08]}  Rg2 {[%clk 0:00:03]} 64. Ke4 {[%clk 0:00:08]}  Rg3 {[%clk 0:00:04]} 65. Kf5 {[%clk 0:00:08]}  Rxb3 {[%clk 0:00:00]} 66. Rxb3 {[%clk 0:00:07]} 1-0


[Site "https://www.chess.com"]